fUSD/lending_fUSD_20251214
["ID","MTS","AMOUNT","RATE_DAILY","PERIOD"]
[398497515,1765751447985,-53.0,0.00016575,2]
[398497516,1765751447996,-531.34838345,0.00016575,2]
[398497517,1765751448008,-1395.65161655,0.00016575,2]
[398497518,1765751448018,-820.60652868,0.00016608,2]
[398497519,1765751448042,-1065.32192759,0.00016608,2]
[398497520,1765751448053,-6.07154373,0.00016608,2]
[398497521,1765751448062,-351.0,0.00016641,2]
[398497522,1765751448072,-4797.0,0.00016976,2]
[398497523,1765751448081,-1314.85029921,0.00017,2]
[398497524,1765751448091,-1573.75893737,0.00017,2]
[398497525,1765751448102,-891.39598,0.00017,2]
[398497549,1765751609473,174.07169646,0.00015,2]
[398497609,1765752214872,1600.0,0.00015381,2]
[398497617,1765752299545,547.7,0.00015517,2]
[398497618,1765752327342,150.0,0.00015288,2]
[398497619,1765752327480,150.0,0.00015288,2]
[398497620,1765752327651,150.0,0.00015288,2]
[398497621,1765752334598,150.0,0.00015288,2]
[398497631,1765752552956,300.0,0.00015671,3]
[398497646,1765752618194,250.0,0.00015671,3]
[398497647,1765752626361,6702.31,0.00015432,2]
[398497648,1765752626389,9331.78,0.00015432,2]
[398497649,1765752630376,250.0,0.00015671,3]
[398497660,1765752631950,-250.0,0.00015824,2]
[398497661,1765752631959,-250.0,0.00015836,2]
[398497662,1765752631970,-193.0,0.0001584,2]
[398497663,1765752631979,-195.0,0.0001584,2]
[398497664,1765752631989,-200.0,0.0001584,2]
[398497665,1765752631998,-150.0,0.00015853,2]
[398497666,1765752632008,-200.0,0.000159,2]
[398497667,1765752632017,-819.13034631,0.00015974,2]
[398497668,1765752632029,-1546.56292351,0.00015974,2]
[398497669,1765752632046,-134.30673018,0.00015974,2]
[398497670,1765752632055,-352.56429982,0.00016046,2]
[398497671,1765752632067,-847.43570018,0.00016046,2]
[398497672,1765752632080,-300.0,0.00016047,2]
[398497673,1765752632090,-1640.01,0.00016048,2]
[398497674,1765752632100,-1072.1,0.00016048,2]
[398497675,1765752632109,-463.17341479,0.00016049,2]
[398497676,1765752632124,-707.487,0.00016049,2]
[398497677,1765752632136,-16135.31756853,0.00016049,2]
[398497678,1765752632146,-550.0,0.00016063,2]
[398497679,1765752632155,-151.0,0.00016064,2]
[398497680,1765752632165,-151.0,0.00016064,2]
[398497681,1765752632175,-242.25792744,0.00016064,2]
[398497682,1765752632184,-151.0,0.00016064,2]
[398497683,1765752632194,-151.0,0.00016064,2]
[398497684,1765752632204,-151.0,0.00016064,2]
[398497685,1765752632213,-151.0,0.00016064,2]
[398497686,1765752632223,-151.0,0.00016064,2]
[398497687,1765752632233,-200.0,0.00016064,2]
[398497688,1765752632242,-151.0,0.00016064,2]
[398497689,1765752632252,-214.76652521,0.00016064,2]
[398497690,1765752632262,-192.6,0.00016064,2]
[398497691,1765752632272,-500.0,0.00016073,2]
[398497692,1765752632283,-500.0,0.00016073,2]
[398497693,1765752632292,-17305.9779833,0.00016144,2]
[398497694,1765752632302,-500.0,0.00016149,2]
[398497695,1765752632313,-200.0,0.00016149,2]
[398497696,1765752632323,-207.4,0.00016149,2]
[398497697,1765752632333,-215.0738,0.00016149,2]
[398497699,1765752632343,-223.0315306,0.00016149,2]
[398497700,1765752632352,-231.28369723,0.00016149,2]
[398497701,1765752632362,-239.84119403,0.00016149,2]
[398497702,1765752632371,-248.71531821,0.00016149,2]
[398497704,1765752632381,-257.91778498,0.00016149,2]
[398497706,1765752632391,-267.46074303,0.00016149,2]
[398497708,1765752632401,-1000.0,0.00016149,2]
[398497710,1765752632410,-277.35679052,0.00016149,2]
[398497711,1765752632420,-1000.0,0.00016149,2]
[398497712,1765752632429,-1000.0,0.00016149,2]
[398497713,1765752632438,-1000.0,0.00016149,2]
[398497714,1765752632447,-624.66912467,0.00016149,2]
[398497715,1765752632460,-375.33087533,0.00016149,2]
[398497716,1765752632471,-1000.0,0.00016149,2]
[398497717,1765752632481,-721.66912467,0.00016149,2]
[398497718,1765752632494,-278.33087533,0.00016149,2]
[398497719,1765752632504,-1000.0,0.00016149,2]
[398497720,1765752632514,-1000.0,0.00016149,2]
[398497721,1765752632524,-576.1861748,0.00016149,2]
[398497722,1765752632533,-300.0,0.00016149,2]
[398497723,1765752632542,-96.75679553,0.00016237,2]
[398497724,1765752632562,-314.72647848,0.00016237,2]
[398497725,1765752632571,-9583.67418949,0.00016238,2]
[398497726,1765752632582,-612.07,0.00016238,2]
[398497727,1765752632593,-1575.82463805,0.00016238,2]
[398497728,1765752632603,-5534.40915576,0.00016238,2]
[398497729,1765752632612,-723.0,0.00016303,2]
[398497730,1765752632622,-17305.9779833,0.00016333,2]
[398497731,1765752632631,-17305.9779833,0.00016427,2]
[398497732,1765752632640,-9987.87129286,0.00016522,2]
[398497733,1765752632651,-7318.10669044,0.00016522,2]
[398497734,1765752632660,-260.73,0.00016585,2]
[398497735,1765752632669,-589.32352392,0.00016615,2]
[398497736,1765752632678,-13.16921444,0.00016615,2]
[398497737,1765752632697,-172.50138328,0.00016615,2]
[398497738,1765752632707,-127.49861672,0.00016616,2]
[398497740,1765752638178,-17178.47936658,0.00016616,2]
[398497741,1765752638188,-289.25,0.00016621,2]
[398497742,1765752638198,-683.48185202,0.0001666,2]
[398497743,1765752638208,-216.82164497,0.00016665,2]
[398497744,1765752638218,-168.0,0.00016698,2]
[398497745,1765752638227,-150.0,0.00016699,2]
[398497746,1765752638236,-200.0,0.00016699,2]
[398497747,1765752638246,-632.34,0.00016699,2]
[398497748,1765752638255,-150.0,0.00016699,2]
[398497749,1765752638265,-500.0,0.00016699,2]
[398497750,1765752638274,-150.0,0.00016699,2]
[398497751,1765752638284,-1373.0,0.00016699,2]
[398497752,1765752638295,-150.0,0.00016699,2]
[398497753,1765752638309,-150.0,0.00016699,2]
[398497754,1765752638319,-150.0,0.00016699,2]
[398497755,1765752638328,-150.0,0.00016699,2]
[398497756,1765752638339,-150.0,0.00016699,2]
[398497757,1765752638349,-150.0,0.00016699,2]
[398497758,1765752638358,-150.0,0.00016699,2]
[398497759,1765752638368,-150.0,0.00016699,2]
[398497760,1765752638377,-250.0,0.00016699,2]
[398497761,1765752638387,-14604.63910549,0.00016711,2]
[398497762,1765752638400,-570.31086116,0.00016711,2]
[398497763,1765752638411,-1266.01117204,0.00016711,2]
[398497764,1765752638423,-865.01684461,0.00016711,2]
[398497765,1765752638432,-223.28073538,0.00016752,2]
[398497766,1765752638441,-284.0,0.00016775,2]
[398497767,1765752638451,-200.18642375,0.00016792,2]
[398497768,1765752638462,-17305.9779833,0.00016805,2]
[398497769,1765752638472,-543.65,0.00016828,2]
[398497770,1765752638481,-500.0,0.00016829,2]
[398497771,1765752638490,-500.0,0.00016829,2]
[398497772,1765752638500,-579.99190904,0.00016829,2]
[398497773,1765752638509,-2212.30515,0.0001683,2]
[398497775,1765752638518,-1165.094,0.00016833,2]
[398497777,1765752638527,-150.0,0.00016836,2]
[398497779,1765752638537,-500.0,0.00016836,2]
[398497781,1765752638546,-150.0,0.00016836,2]
[398497783,1765752638555,-1373.0,0.00016836,2]
[398497785,1765752638564,-150.0,0.00016836,2]
[398497787,1765752638573,-150.0,0.00016836,2]
[398497789,1765752638582,-150.0,0.00016836,2]
[398497791,1765752638591,-150.0,0.00016836,2]
[398497793,1765752638600,-200.0,0.00016836,2]
[398497795,1765752638609,-200.0,0.00016864,2]
[398497797,1765752638619,-500.0,0.00016868,2]
[398497799,1765752638627,-217.0,0.0001688,2]
[398497801,1765752638637,-500.0,0.00016899,2]
[398497803,1765752638646,-835.33843575,0.00016899,2]
[398497805,1765752638655,-835.33843573,0.00016899,2]
[398497807,1765752638664,-835.33843573,0.00016899,2]
[398497809,1765752638673,-835.33843573,0.00016899,2]
[398497811,1765752638682,-835.33843573,0.00016899,2]
[398497813,1765752638691,-835.33843573,0.000169,2]
[398497815,1765752638699,-835.33843573,0.000169,2]
[398497817,1765752638708,-17305.9779833,0.000169,2]
[398497819,1765752638718,-494.19685013,0.000169,2]
[398497821,1765752638727,-456.93164392,0.000169,2]
[398497822,1765752638736,-347.25268631,0.000169,2]
[398497823,1765752638745,-699.17410878,0.000169,2]
[398497824,1765752638755,-833.98451873,0.000169,2]
[398497825,1765752638763,-2274.62305427,0.000169,2]
[398497826,1765752638772,-481.15230225,0.00016917,2]
[398497827,1765752638782,-284.0,0.00016954,2]
[398497828,1765752638791,-500.0,0.00016973,2]
[398497829,1765752638801,-500.0,0.00016973,2]
[398497830,1765752638810,-500.0,0.00016973,2]
[398497831,1765752638819,-500.0,0.00016973,2]
[398497832,1765752638827,-500.0,0.00016973,2]
[398497833,1765752638836,-500.0,0.00016973,2]
[398497834,1765752638845,-500.0,0.00016973,2]
[398497836,1765752638854,-500.0,0.00016973,2]
[398497837,1765752638864,-500.0,0.00016973,2]
[398497839,1765752638878,-606.81718784,0.00016973,2]
[398497841,1765752638888,-500.0,0.00016973,2]
[398497843,1765752638897,-200.0,0.00016973,2]
[398497845,1765752638907,-500.0,0.00016973,2]
[398497847,1765752638916,-150.0,0.00016973,2]
[398497849,1765752638926,-1373.0,0.00016973,2]
[398497851,1765752638935,-150.0,0.00016973,2]
[398497853,1765752638945,-150.0,0.00016973,2]
[398497856,1765752638959,-200.0,0.00016973,2]
[398497858,1765752638968,-150.0,0.00016973,2]
[398497860,1765752638978,-500.0,0.00016973,2]
[398497862,1765752638987,-150.0,0.00016973,2]
[398497864,1765752638996,-150.85899699,0.00016976,2]
[398497866,1765752639006,-192.60040553,0.00016986,2]
[398497868,1765752639015,-500.0,0.00016986,2]
[398497870,1765752639024,-150.0,0.00016986,2]
[398497872,1765752639033,-150.0,0.00016986,2]
[398497874,1765752639042,-5007.0,0.00016986,2]
[398497876,1765752639051,-1434.6,0.00016989,2]
[398497877,1765752639060,-168.0,0.00016994,2]
[398497879,1765752639069,-500.0,0.00016998,2]
[398497882,1765752639080,-208.227511,0.00016998,2]
[398497892,1765752639560,-500.0,0.00016998,2]
[398497893,1765752639570,-154773.8508812,0.00016999,2]
[398497894,1765752639579,-500.0,0.00016999,2]
[398497895,1765752639588,-500.0,0.00016999,2]
[398497896,1765752639598,-519.30985649,0.00016999,2]
[398497897,1765752639607,-1688.5007221,0.00016999,2]
[398497898,1765752639616,-1139.7502052,0.00016999,5]
[398497899,1765752639625,-1139.75020521,0.00016999,5]
[398497900,1765752639634,-500.0,0.00016999,2]
[398497901,1765752639643,-300.0,0.00016999,2]
[398497902,1765752639652,-5635.8107023,0.00016999,2]
[398497903,1765752639661,-4860.3789779,0.00016999,2]
[398497904,1765752639670,-1139.7502052,0.00016999,5]
[398497905,1765752639679,-300.0,0.00016999,2]
[398497906,1765752639688,-500.0,0.00016999,2]
[398497907,1765752639697,-4027.0,0.00017,2]
[398497908,1765752639707,-40304.17201375,0.00017,2]
[398497909,1765752639726,-692.42360236,0.00017,2]
[398497910,1765752639738,-17650.88914313,0.00017,2]
[398497911,1765752639749,-460.6838286,0.00017,2]
[398497912,1765752639760,-6200.86807459,0.00017,2]
[398497915,1765752640098,-476.08228156,0.00017,2]
[398497916,1765752640132,-252.4997475,0.00017,2]
[398497917,1765752640164,-67379.2309671,0.00017,2]
[398497918,1765752640173,-160.0,0.00017,2]
[398497919,1765752640183,-500.0,0.00017,2]
[398497920,1765752640192,-4615578.01355963,0.00017,2]
[398497921,1765752640360,-15922.17853663,0.00017,2]
[398497933,1765752643352,-835.33843573,0.000169,2]
[398497934,1765752643362,-45.66156427,0.00017,2]
[398497949,1765752648073,-999.0,0.00017,2]
[398497950,1765752648089,-1376.10598785,0.00017,2]
[398497951,1765752650479,3032.0,0.000109,5]
[398497956,1765752681324,492.0,0.000123,5]
[398497961,1765752776140,250.0,0.00015671,3]
[398497962,1765752789406,250.0,0.00015699,3]
[398497979,1765752885089,300.0,0.00015699,3]
[398497993,1765752935255,166.66,0.0001506,2]
[398497994,1765752935352,166.66,0.00015377,2]
[398497995,1765752935545,166.66,0.00015694,2]
[398497996,1765752938221,300.0,0.00015699,3]
[398498001,1765752951141,1940.475114,0.00015674,2]
[398498014,1765753013317,-151.9,0.00015975,2]
[398498015,1765753013341,-166.66,0.00016011,2]
[398498016,1765753013363,-32.57519473,0.00016036,2]
[398498030,1765753058840,-170.84457082,0.00016036,2]
[398498031,1765753058863,-131.49826418,0.00016043,2]
[398498033,1765753073293,-118.50173582,0.00016043,2]
[398498034,1765753073320,-33.17376303,0.00016049,2]
[398498056,1765753195919,-156.90022048,0.00015956,2]
[398498102,1765753531548,150.0,0.00015288,2]
[398498103,1765753531583,150.0,0.00015288,2]
[398498104,1765753531645,150.0,0.00015288,2]
[398498105,1765753537115,150.0,0.00015288,2]
[398498106,1765753537586,150.0,0.00015712,2]
[398498107,1765753537654,150.0,0.00015288,2]
[398498108,1765753537688,150.0,0.00015288,2]
[398498109,1765753544357,150.0,0.00015288,2]
[398498110,1765753544463,151.01633983,0.00015288,2]
[398498111,1765753544557,150.0,0.00015288,2]
[398498113,1765753552440,150.0,0.00015288,2]
[398498137,1765753832108,-300.0,0.00015955,2]
[398498138,1765753832119,-97.84647269,0.00015955,2]
[398498139,1765753832131,-1102.15352731,0.00015955,2]
[398498140,1765753832141,-300.0,0.00015955,2]
[398498141,1765753832150,-283.0,0.00015955,2]
[398498142,1765753832160,-250.0,0.00015955,2]
[398498143,1765753832169,-152.33736979,0.00015955,2]
[398498144,1765753832179,-69.38748131,0.00015956,2]
[398498145,1765753832188,-500.0,0.00015956,2]
[398498146,1765753832198,-500.0,0.00015956,2]
[398498147,1765753832207,-500.0,0.00015956,2]
[398498148,1765753832217,-167.76667012,0.00015956,2]
[398498149,1765753832227,-153.0,0.00016019,2]
[398498150,1765753832236,-153.0,0.00016019,2]
[398498151,1765753832246,-151.5,0.00016056,2]
[398498152,1765753832255,-500.0,0.00016073,2]
[398498153,1765753832264,-417.28529595,0.00016073,2]
[398498154,1765753832276,-82.71470405,0.00016073,2]
[398498155,1765753832287,-550.0,0.00016127,2]
[398498156,1765753832299,-200.0,0.00016128,2]
[398498157,1765753832308,-185.15819676,0.00016128,2]
[398498158,1765753832332,-314.84180324,0.00016128,2]
[398498159,1765753832341,-500.0,0.00016128,2]
[398498160,1765753832351,-500.0,0.00016128,2]
[398498161,1765753832361,-500.0,0.00016128,2]
[398498162,1765753832371,-365.28404576,0.00016128,2]
[398498163,1765753832386,-134.71595424,0.00016128,2]
[398498164,1765753832395,-500.0,0.00016128,2]
[398498165,1765753832405,-604.14963069,0.00016128,2]
[398498166,1765753832415,-500.0,0.00016128,2]
[398498167,1765753832425,-500.0,0.00016128,2]
[398498168,1765753832434,-500.0,0.00016128,2]
[398498169,1765753832443,-500.0,0.00016128,2]
[398498170,1765753832453,-200.0,0.00016128,2]
[398498171,1765753832462,-200.0,0.00016128,2]
[398498172,1765753832471,-500.0,0.00016128,2]
[398498173,1765753832483,-152.91,0.00016137,2]
[398498174,1765753832492,-152.83,0.00016137,2]
[398498175,1765753832501,-150.0,0.00016137,2]
[398498176,1765753832511,-9559.0,0.00016138,2]
[398498177,1765753832520,-300.0,0.00016149,2]
[398498178,1765753832529,-250.0,0.00016149,2]
[398498179,1765753832539,-500.0,0.00016149,2]
[398498181,1765753832548,-250.0,0.00016149,2]
[398498182,1765753832557,-500.0,0.00016149,2]
[398498184,1765753832566,-500.0,0.00016149,2]
[398498186,1765753832576,-500.0,0.00016149,2]
[398498188,1765753832586,-500.0,0.00016149,2]
[398498190,1765753832595,-500.0,0.00016149,2]
[398498192,1765753832604,-500.0,0.00016149,2]
[398498194,1765753832613,-500.0,0.00016149,2]
[398498196,1765753832623,-500.0,0.00016149,2]
[398498198,1765753832632,-500.0,0.00016149,2]
[398498200,1765753832641,-500.0,0.00016149,2]
[398498202,1765753832650,-620.0,0.00016149,2]
[398498204,1765753832659,-574.12855637,0.00016149,2]
[398498206,1765753832668,-500.0,0.00016149,2]
[398498208,1765753832678,-544.08822076,0.00016149,2]
[398498210,1765753832687,-500.0,0.00016149,2]
[398498212,1765753832696,-500.0,0.00016149,2]
[398498214,1765753832705,-500.0,0.00016149,2]
[398498216,1765753832714,-250.0,0.00016149,2]
[398498218,1765753832723,-500.0,0.00016149,2]
[398498220,1765753832733,-166.66,0.00016223,2]
[398498222,1765753832743,-166.66,0.00016329,2]
[398498224,1765753832752,-168.0,0.00016416,2]
[398498226,1765753832761,-168.0,0.0001642,2]
[398498228,1765753832769,-6260.98,0.00016438,2]
[398498230,1765753832779,-300.0,0.00016438,4]
[398498232,1765753832788,-500.0,0.00016466,2]
[398498234,1765753832798,-217.0,0.00016479,2]
[398498236,1765753832807,-321.07696526,0.00016479,2]
[398498238,1765753832816,-500.0,0.00016499,2]
[398498240,1765753832826,-500.0,0.00016499,2]
[398498242,1765753832835,-620.0,0.00016499,2]
[398498244,1765753832844,-2163.98,0.000165,2]
[398498246,1765753832854,-2154.22,0.000165,2]
[398498248,1765753832863,-1217.27,0.000165,2]
[398498250,1765753832872,-2049.74,0.000165,2]
[398498252,1765753832881,-1217.27,0.000165,2]
[398498254,1765753832891,-2464.38,0.000165,2]
[398498255,1765753832900,-1217.27,0.000165,2]
[398498256,1765753832909,-1217.27,0.000165,2]
[398498257,1765753832918,-2433.18,0.000165,2]
[398498258,1765753832927,-1217.27,0.000165,2]
[398498259,1765753832936,-1217.27,0.000165,2]
[398498260,1765753832945,-1217.27,0.000165,2]
[398498261,1765753832954,-879.44,0.000165,2]
[398498262,1765753832963,-150.0,0.00016562,2]
[398498263,1765753832972,-150.85,0.00016616,2]
[398498264,1765753832982,-166.66,0.00016646,2]
[398498265,1765753832991,-455.65456802,0.0001666,2]
[398498266,1765753833001,-170.74,0.0001667,2]
[398498267,1765753833010,-200.0,0.00016676,2]
[398498268,1765753833019,-200.0,0.00016676,2]
[398498269,1765753833029,-500.0,0.00016676,2]
[398498270,1765753833040,-252.27,0.00016691,2]
[398498271,1765753833049,-220.62,0.00016692,2]
[398498272,1765753833058,-595.37131296,0.00016697,2]
[398498273,1765753833067,-500.0,0.00016699,2]
[398498274,1765753833077,-208.16273017,0.00016699,2]
[398498275,1765753833086,-150.0,0.00016699,2]
[398498276,1765753833095,-150.0,0.00016699,2]
[398498277,1765753833105,-150.0,0.00016699,2]
[398498278,1765753833114,-161.66158552,0.00016699,2]
[398498279,1765753833123,-150.0,0.00016699,2]
[398498280,1765753833132,-161.99230191,0.00016699,2]
[398498281,1765753833141,-250.29726926,0.00016699,2]
[398498282,1765753833151,-150.0,0.00016699,2]
[398498283,1765753833159,-771.17,0.00016699,2]
[398498284,1765753833169,-500.0,0.00016699,2]
[398498285,1765753833178,-500.0,0.00016699,2]
[398498286,1765753833188,-500.0,0.00016699,2]
[398498287,1765753833197,-150.0,0.00016699,2]
[398498288,1765753833207,-500.0,0.00016699,2]
[398498289,1765753833216,-500.0,0.00016699,2]
[398498290,1765753833225,-154.19787838,0.00016699,2]
[398498291,1765753833235,-150.0,0.00016699,2]
[398498292,1765753833244,-150.0,0.00016699,2]
[398498293,1765753833254,-1337.0,0.00016699,2]
[398498294,1765753833263,-500.0,0.00016699,2]
[398498295,1765753833273,-150.0,0.00016699,2]
[398498296,1765753833282,-500.0,0.00016699,2]
[398498297,1765753833295,-150.0,0.00016699,2]
[398498298,1765753833305,-150.0,0.00016699,2]
[398498299,1765753833314,-150.0,0.00016699,2]
[398498300,1765753833323,-150.0,0.00016699,2]
[398498301,1765753833332,-150.0,0.00016699,2]
[398498302,1765753833343,-150.0,0.00016699,2]
[398498303,1765753833352,-150.0,0.00016699,2]
[398498304,1765753833361,-646.28557965,0.00016731,2]
[398498305,1765753833370,-1000.0,0.000168,2]
[398498306,1765753833380,-1600.682,0.0001683,2]
[398498307,1765753833389,-172.313,0.0001683,2]
[398498308,1765753833399,-500.0,0.00016836,2]
[398498309,1765753833409,-150.0,0.00016836,2]
[398498310,1765753833418,-500.0,0.00016836,2]
[398498311,1765753833427,-500.0,0.00016836,2]
[398498312,1765753833438,-500.0,0.00016836,2]
[398498313,1765753833447,-200.0,0.00016836,2]
[398498314,1765753833457,-500.0,0.00016836,2]
[398498315,1765753833466,-500.0,0.00016836,2]
[398498316,1765753833476,-200.0,0.00016836,2]
[398498317,1765753833485,-1337.0,0.00016836,2]
[398498318,1765753833494,-500.0,0.00016836,2]
[398498319,1765753833503,-522.53920466,0.00016836,2]
[398498320,1765753833513,-150.0,0.00016836,2]
[398498321,1765753833523,-150.0,0.00016836,2]
[398498322,1765753833533,-150.0,0.00016836,2]
[398498323,1765753833542,-200.0,0.00016864,2]
[398498324,1765753833551,-911.0,0.00016871,2]
[398498325,1765753833560,-1186.25113242,0.00016871,2]
[398498326,1765753833577,-1051.73486758,0.00016871,2]
[398498327,1765753833586,-563.0,0.00016871,2]
[398498328,1765753833596,-1823.69670823,0.000169,2]
[398498329,1765753833605,-481.15230225,0.00016913,2]
[398498330,1765753833615,-150.85899699,0.00016941,2]
[398498331,1765753833626,-162.97696817,0.00016973,2]
[398498332,1765753833636,-66.58015662,0.00016973,2]
[398498333,1765753833650,-105.8889799,0.00016973,2]
[398498334,1765753833661,-174.60673788,0.00016973,2]
[398498335,1765753833671,-320.64728523,0.00016973,2]
[398498336,1765753833685,-179.35271477,0.00016973,2]
[398498337,1765753833696,-431.61571137,0.00016973,2]
[398498338,1765753833708,-68.38428863,0.00016973,2]
[398498339,1765753833718,-167.51806982,0.00016973,2]
[398498340,1765753833728,-133.48952447,0.00016973,2]
[398498346,1765753840314,-2426.0,0.00016871,2]
[398498347,1765753840324,-228.75967025,0.00016973,2]
[398498349,1765753840333,-500.0,0.00016973,2]
[398498351,1765753840343,-500.0,0.00016973,2]
[398498352,1765753840352,-283.7077745,0.00016973,2]
[398498353,1765753840361,-301.18557743,0.00016973,2]
[398498354,1765753840370,-500.0,0.00016973,2]
[398498355,1765753840380,-500.0,0.00016973,2]
[398498356,1765753840389,-500.25167315,0.00016973,2]
[398498357,1765753840398,-500.0,0.00016973,2]
[398498358,1765753840408,-500.0,0.00016973,2]
[398498359,1765753840417,-500.0,0.00016973,2]
[398498360,1765753840427,-502.26225746,0.00016973,2]
[398498361,1765753840435,-500.0,0.00016973,2]
[398498362,1765753840444,-500.0,0.00016973,2]
[398498363,1765753840453,-500.0,0.00016973,2]
[398498364,1765753840462,-500.0,0.00016973,2]
[398498365,1765753840475,-500.0,0.00016973,2]
[398498366,1765753840492,-500.0,0.00016973,2]
[398498367,1765753840501,-500.0,0.00016973,2]
[398498368,1765753840511,-500.0,0.00016973,2]
[398498369,1765753840520,-517.81601254,0.00016973,2]
[398498370,1765753840530,-500.0,0.00016973,2]
[398498371,1765753840539,-235.86372858,0.00016973,2]
[398498372,1765753840548,-500.0,0.00016973,2]
[398498373,1765753840557,-523.22178769,0.00016973,2]
[398498374,1765753840567,-440.0,0.00016973,2]
[398498375,1765753840576,-510.0,0.00016973,2]
[398498376,1765753840585,-500.0,0.00016973,2]
[398498377,1765753840594,-1337.0,0.00016973,2]
[398498378,1765753840603,-500.0,0.00016973,2]
[398498379,1765753840612,-154.31095398,0.00016973,2]
[398498380,1765753840621,-150.0,0.00016973,2]
[398498381,1765753840631,-200.0,0.00016973,2]
[398498382,1765753840643,-771.17,0.00016973,2]
[398498383,1765753840652,-500.0,0.00016973,2]
[398498384,1765753840662,-150.0,0.00016973,2]
[398498385,1765753840671,-500.0,0.00016986,2]
[398498386,1765753840680,-150.0,0.00016986,2]
[398498387,1765753840689,-150.0,0.00016986,2]
[398498388,1765753840699,-150.00000001,0.00016986,2]
[398498390,1765753840709,-150.0,0.00016986,2]
[398498391,1765753840718,-264.60302406,0.00016986,2]
[398498393,1765753840727,-150.0,0.00016986,2]
[398498394,1765753840737,-339.0,0.00016997,2]
[398498396,1765753840746,-322.31326965,0.00016999,2]
[398498398,1765753840755,-367.98966444,0.00016999,2]
[398498400,1765753840764,-372.12255932,0.00016999,2]
[398498402,1765753840774,-412.52646674,0.00016999,2]
[398498403,1765753840783,-3983.0,0.00017,2]
[398498405,1765753840792,-168.664284,0.00017,2]
[398498407,1765753840801,-4656905.47582293,0.00017,2]
[398498462,1765753846401,-1611.51,0.0001673,2]
[398498495,1765754021163,426.91,7.977e-05,2]
[398498496,1765754021362,426.91,8.397e-05,2]
[398498497,1765754021567,426.91,8.817e-05,2]
[398498498,1765754021762,426.91,9.237e-05,2]
[398498499,1765754021984,426.91,9.656e-05,2]
[398498500,1765754022192,426.91,0.00010076,2]
[398498501,1765754022421,426.91,0.00010496,2]
[398498502,1765754022648,426.91,0.00010916,2]
[398498503,1765754022861,426.91,0.00011336,2]
[398498504,1765754023065,426.91,0.00011756,2]
[398498505,1765754023267,426.91,0.00012175,2]
[398498506,1765754023469,426.91,0.00012595,2]
[398498507,1765754023694,426.91,0.00013015,2]
[398498508,1765754023902,426.91,0.00013435,2]
[398498509,1765754034965,426.91,0.00013855,2]
[398498510,1765754035180,426.91,0.00014275,2]
[398498511,1765754035390,426.91,0.00014694,2]
[398498512,1765754035613,426.91,0.00015114,2]
[398498513,1765754035824,426.91,0.00015534,2]
[398498589,1765754249251,186.82,0.00012699,2]
[398498654,1765754423356,-171.68839056,0.00015849,2]
[398498655,1765754425420,-300.0,0.00015849,2]
[398498730,1765754670602,458.0,0.00015685,2]
[398498740,1765754725758,1023.73252725,0.000108,2]
[398498741,1765754727364,150.0,0.00015288,2]
[398498742,1765754734154,150.0,0.00015288,2]
[398498743,1765754734326,150.0,0.00015288,2]